Workbook

Sheet Introduction
B3: KSU-Economics of Silage Storage Alternatives
B5: A spreadsheet to evaluate the storage capacity requirements and the economic costs associated with storing silage in bunkers, piles, or plastic bags
L8: Version- 3.1.2014
B28: INSTRUCTIONS FOR THE USER:
B29: Be sure to "Enable Content" and "Enable Macros" for the spreadsheet to function correctly. This spreadsheet uses macros to print the three different pages, however printing can also be done manually by highlighting the desired range and using the menu print commands.
B33: In the Volume, Packing, Invesment, and Economics tabs all blue numbers are inputs and all black numbers are calculated from these inputs.
B35: The input cells (i.e., blue number) have a red diamond in the upper right hand corner of the cell. By moving your mouse cursor over this diamond, a brief description of the input will be displayed on the screen. The Bunker diagram tab is included to help visualize what different inputs in Volume tab refer to.
B40: FOR MORE INFORMATION:
B41: See accompanying publication: | F41: Here
B42: Developed by:
B50: Copyright 2016 AgManager.info, K-State Department of Agricultural Economics

Sheet Volume
B2: Assumptions for Various Silage Storage Systems
B4: General Dairy Information | F4: Silage Bags
C5: Herd size, cows | D5: 3000 | G5: Silage density as fed (AF), lbs/cu ft | H5: 30
C6: Silage in ration, AF lbs/cow/day | D6: 45 | G6: Silage density dry matter (DM), lbs/cu ft | H6: =H5*(1-$D$7) -> 9.6
C7: Silage moisture content, % | D7: 0.68 | G7: Estimate of storage DM loss, % | H7: 0.08
G8: Estimate of feedout DM loss, % | H8: 0.03
C9: Daily silage fed, tons AF | D9: =D5*D6/2000 -> 67.5 | G9: Diameter, ft | H9: 12
C10: Daily silage fed, tons DM | D10: =D9*(1-D7) -> 21.6 | G10: Length of bag, ft | H10: 300
C11: Annual silage fed, tons AF | D11: =D9*365 -> 24637.5 | G11: Length of bag for sealing, ft | H11: =H9*2 -> 24
C12: Annual silage fed, tons DM | D12: =D10*365 -> 7884 | G12: Distance between bags, ft | H12: 5
G13: Buffer distance at end of bag, ft | H13: 10
C14: Maximum feed days/storage unit | D14: 122 | G14: Cross-sectional area, sq ft | H14: =PI()*(H9/2)^2 -> 113.0973355
C15: Maximum tons/storage unit, AF | D15: =D14*D6*D5/2000 -> 8235 | G15: Total volume/bag, tons AF | H15: =PI()*(H9/2)^2*(H10-H11)*H5/2000 -> 468.2229691
C16: Maximum tons/storage unit, DM | D16: =D15*(1-D7) -> 2635.2 | G16: Total volume/bag, tons DM | H16: =H15*(1-D7) -> 149.8313501
G17: Daily face removal, ft | H17: =D9*2000/H5/(PI()*(H9/2)^2) -> 39.78873577
G18: Days of silage/bag | H18: =(H10-H11)/H17 -> 6.936636579
G19: Total bags needed | H19: =CEILING(D11/H15/(1-H7-H8),1) -> 60
G20: Size of footprint for bags, acres | H20: =(H10-H11+H13*2)*(H19*H9+(H19+1)*H12)/43560 -> 6.965105601
B22: Bunker Silo | F22: Drive Over Pile
C23: Silage density as fed (AF), lbs/cu ft | D23: 40 | G23: Silage density as fed (AF), lbs/cu ft | H23: 40
C24: Silage density dry matter (DM), lbs/cu ft | D24: =D23*(1-$D$7) -> 12.8 | G24: Silage density dry matter (DM), lbs/cu ft | H24: =H23*(1-$D$7) -> 12.8
C25: Estimate of storage DM loss, % | D25: 0.17 | G25: Estimate of storage DM loss, % | H25: 0.18
C26: Estimate of feedout DM loss, % | D26: 0.03 | G26: Estimate of feedout DM loss, % | H26: 0.04
C27: Bunker height, ft | D27: 15 | G27: Maximum height, ft | H27: 18
C28: Maximum depth above wall, ft | D28: 4 | G28: Side slope (feet of run/foot of rise) | H28: 3.5
C29: Bunker width at base, ft | D29: 120 | G29: Length of plastic, ft | H29: 200
C30: Horizontal distance from top of pile to wall, ft | D30: 4 | E30: =IF(D30<=D29,"","Needs to be less than width at base!") ->  | G30: Allowance for sealing, ft | H30: 10
C31: Sidewall slope (feet of run/foot of rise) | D31: 0.125 | G31: Buffer distance around pile, ft | H31: 10
C32: Bunker width at top of wall, ft | D32: =D27*D31*2+D29 -> 123.75 | G32: Length of side slopes, ft | H32: =SQRT(H27^2+H34^2) -> 65.520989
C33: Width across top, ft | D33: =D32-D30*2 -> 115.75 | G33: Level width across top, ft | H33: =H29-H30-2*H32 -> 58.95802199
C34: Buffer distance on sides of bunker, ft | D34: 10 | G34: Width at bottom side, ft | H34: =H27*H28 -> 63
C35: Running feet of apron(s) | D35: 40 | G35: Total width at bottom, ft | H35: =2*H34+H33 -> 184.958022
C36: Cross-sectional area, sq ft | D36: =(D29*D27)+((D32-D29)/2*D27)+(D33*D28)+((D32-D33)/2*D28) -> 2307.125 | G36: Cross-sectional area, sq ft | H36: =(H33+H34)*H27 -> 2195.244396
C37: Tons per linear foot, tons AF | D37: =D36*D23/2000 -> 46.1425 | G37: Tons per linear foot, tons AF | H37: =H36*H23/2000 -> 43.90488792
C38: Daily face removal, inches | D38: =$D$9*2000/D23*12/D36 -> 17.55431544 | G38: Daily face removal, inches | H38: =$D$9*2000/H23*12/H36 -> 18.44897091
C39: Length for feed required, ft | D39: =D38*$D14/12 -> 178.4688736 | G39: Length for feed required, ft | H39: =H38*$D14/12 -> 187.5645376
C40: Size of footprint, acres/pile | D40: =(D29+D34*2)*(D39+D35)/43560 -> 0.7021497315 | G40: Size of footprint, acres/pile | H40: =(H35+H31*2)*(H39+H31*2)/43560 -> 0.9766303274
C41: Tons in the pile, tons AF | D41: =D37*D39 -> 8235 | G41: Tons in the pile, tons AF | H41: =H37*H39 -> 8235
C42: Square feet of plastic/pile, sq ft | D42: =(D33+(SQRT(D28^2+D30^2)+H30*2))*(D39+H30*2) -> 28064.85908 | G42: Square feet of plastic/pile, sq ft | H42: =H29*(H39+H30*2) -> 41512.90752
C43: Number of bunkers needed | D43: =($D11/D41)/(1-D25-D26) -> 3.739754098 | G43: Number of piles needed | H43: =($D11/H41)/(1-H25-H26) -> 3.835645229
C44: Total footprint for piles, acres | D44: =D40*D43 -> 2.625867336 | G44: Total footprint for piles, acres | H44: =H40*H43 -> 3.746007456

Sheet Drawings
B3: Schematic depicting measurements for bunker silo (cell address in Volume tab)
B28: Schematic depicting measurements for drive-over pile (cell address in Volume tab)

Sheet Packing
B2: Estimating Packing Costs per Ton (AF) of Silage in Bunker or Pile
C4: Silage delivery rate to bunker or pile, tons/hour | D4: 150
C5: Hours to fill bunker or pile (based on information in Volume tab) | D5: =Volume!D15/D4 -> 54.9
C6: Tractor packing hours per silage delivery hour* | D6: 3
C7: Tractor cost per hour (depreciation, interests, repairs) | D7: 34.5
C8: Fuel consumption per tractor-hour, gal/hr | D8: 5.5
C9: Fuel price, $/gal | D9: 1.5
C10: Labor cost, $/hr | D10: 12
C11: Estimated packing cost per tractor-hour | D11: =D7+D8*D9+D10 -> 54.75
C12: Estimated cost per ton (AF) for packing | D12: =D6*(D7+D8*D9+D10)/D4 -> 1.095
B14: * It is assumed that packing tractor hours entered are sufficient to ensure sufficient packing for proper density (see Bunker Silo Density Calculator.xls by Holmes and Muck, available at http://www.uwex.edu/ces/crops/uwforage/ for information regarding tractor weights and hours of packing and its impact on silage pack density).

Sheet Investment
B2: Investment per Ton (AF) of Storage Capacity by System
D4: Silage Storage System
D5: Bunker silo | E5: Drive over pile | F5: Plastic bags
C6: Size of footprint required, square feet | D6: =Volume!D44*43560 -> 114382.7812 | E6: =Volume!H44*43560 -> 163176.0848 | F6: =Volume!H20*43560 -> 303400
C7: Cost of floor/base (i.e., land leveling, excavating, rock, etc.), $/sq ft | D7: 1.8 | E7: 0.9 | F7: 0.9
B8: A. | C8: Total investment for floor | D8: =D6*D7 -> 205889.0061 | E8: =E6*E7 -> 146858.4763 | F8: =F6*F7 -> 273060
C9: Endwall in bunker (Yes=1, No=0) | D9: 1 | E9: --------- | F9: ---------
C10: Total running feet of walls for bunker | D10: =(Volume!D39*2+Volume!D29)*Volume!D43*Investment!D9 -> 1783.629895 | E10: --------- | F10: ---------
C11: Cost of walls and footings, etc., $/running foot | D11: 150 | F11: ---------
B12: B. | C12: Total investment for walls | D12: =D10*D11 -> 267544.4842 | F12: ---------
C13: Surface area to be covered, square feet | D13: =((Volume!D33+SQRT(Volume!D28^2+Volume!D30^2))*Volume!D39)*Volume!D43 -> 81030.54049 | E13: =Volume!H29*Volume!H39*Volume!H43 -> 143886.2047 | F13: ---------
C14: Tires (weights) per 100 square feet | D14: 20 | E14: =D14 -> 20 | F14: ---------
C15: Total tires (weights) required | D15: =D13/100*D14 -> 16206.1081 | E15: =E13/100*E14 -> 28777.24095 | F15: ---------
C16: Cost per tire (weight), $/unit | D16: 1.5 | E16: 1.5 | F16: ---------
B17: C. | C17: Total investment for weights | D17: =D15*D16 -> 24309.16215 | E17: =E15*E16 -> 43165.86142 | F17: ---------
B18: D. | C18: Other investment, total $ | D18: 20000 | E18: 20000 | F18: 20000
B19: TOTAL INVESTMENT (A+B+C+D) | D19: =+D8+D12+D17+D18 -> 517742.6524 | E19: =+E8+E12+E17+E18 -> 210024.3377 | F19: =+F8+F18 -> 293060
B20: TOTAL INVESMENT PER TON (AF) OF STORAGE CAPACITY | D20: =D19/Volume!$D11 -> 21.01441512 | E20: =E19/Volume!$D11 -> 8.524579917 | F20: =F19/Volume!$D11 -> 11.8948757

Sheet Costs
B2: Economic Comparisons of Alternative Silage Storage Systems
B4: General inputs
C5: Interest rate, % | D5: 0.1
C6: Value of land, $/acre | D6: 1000 | F6: =Volume!C5 -> Herd size, cows | H6: =Volume!D5 -> 3000
C7: Cost of plastic, $/sq ft | D7: 0.03 | F7: =Volume!C6 -> Silage in ration, AF lbs/cow/day | H7: =Volume!D6 -> 45
C8: Labor cost, $/hour | D8: 10 | F8: =Volume!C7 -> Silage moisture content, % | H8: =Volume!D7 -> 0.68
C9: Milk price, $/cwt | D9: 13.5
F11: Silage Storage System
B12: Storage-type-specific inputs | F12: Bunker silo | G12: Drive over pile | H12: Plastic bags
C13: Area of footprint required, acres | F13: =Volume!D44 -> 2.625867336 | G13: =Volume!H44 -> 3.746007456 | H13: =Volume!H20 -> 6.965105601
C14: Storage units required for silage needs | F14: =Volume!D43 -> 3.739754098 | G14: =Volume!H43 -> 3.835645229 | H14: =Volume!H19 -> 60
C15: Tons of silage stored, AF | F15: =Volume!$D11/(1-F29-F30) -> 30796.875 | G15: =Volume!$D11/(1-G29-G30) -> 31586.53846 | H15: =Volume!$D11/(1-H29-H30) -> 27682.58427
C16: Plastic required for covering bunkers and piles, sq ft | F16: =Volume!D42 -> 28064.85908 | G16: =Volume!H42 -> 41512.90752 | H16: na
C17: Structure investment per ton of storage capacity, $/ton AF a | F17: =Investment!D20 -> 21.01441512 | G17: =Investment!E20 -> 8.524579917 | H17: =Investment!F20 -> 11.8948757
C18: Useful life to depreciate investment over, years | F18: 30 | G18: 30 | H18: 30
C19: Annual repairs and maintenance, % | F19: 0.015 | G19: 0.015 | H19: 0.015
C20: Annual cost of structure and land, $/ton AF | F20: =IF(F18=0,0,-PMT($D5,F18,F17)+F19*F17+(F13*$D6*$D5)/F15) -> 2.552935993 | G20: =IF(G18=0,0,-PMT($D5,G18,G17)+G19*G17+(G13*$D6*$D5)/G15) -> 1.044009234 | H20: =IF(H18=0,0,-PMT($D5,H18,H17)+H19*H17+(H13*$D6*$D5)/H15) -> 1.465383212
C22: Cost of silage delivered to storage, $/ton AF | F22: 25 | G22: 25 | H22: 25
C23: Cost of packing or bagging, $/ton AF b | F23: =Packing!D12 -> 1.095 | G23: 1.1 | H23: 6
C24: Hours for covering silage, man-hrs/bunker or pile | F24: 50 | G24: 50 | H24: 0
C25: Other annual costs (e.g., tires, sand, bags, etc.), $/unit | F25: 500 | G25: 500 | H25: 100
C26: Total cost of silage into storage, $/ton AF | F26: =F20+F22+F23+(F24*$D8+F25)*F14/F15 -> 28.7693689 | G26: =G20+G22+G23+(G24*$D8+G25)*G14/G15 -> 27.26544214 | H26: =H20+H22+H23+(H24*$D8+H25)*H14/H15 -> 32.68212598
C27: Total cost of silage into storage, $/ton DM | F27: =F26/(1-$H8) -> 89.90427782 | G27: =G26/(1-$H8) -> 85.2045067 | H27: =H26/(1-$H8) -> 102.1316437
C29: Estimate of storage DM loss, % | F29: =Volume!D25 -> 0.17 | G29: =Volume!H25 -> 0.18 | H29: =Volume!H7 -> 0.08
C30: Estimate of feedout DM loss, % | F30: =Volume!D26 -> 0.03 | G30: =Volume!H26 -> 0.04 | H30: =Volume!H8 -> 0.03
C31: Total DM loss, % | F31: =+F29+F30 -> 0.2 | G31: =+G29+G30 -> 0.22 | H31: =+H29+H30 -> 0.11
C32: Total cost of silage out of storage, $/ton AF | F32: =F26/(1-F31) -> 35.96171113 | G32: =G26/(1-G31) -> 34.95569505 | H32: =H26/(1-H31) -> 36.72148987
C33: Total cost of silage out of storage, $/ton DM | F33: =F32/(1-$H8) -> 112.3803473 | G33: =G32/(1-$H8) -> 109.236547 | H33: =H32/(1-$H8) -> 114.7546558
B35: Silage cost adjustments due to quality
C36: Change in milk production due to nutritive quality of silage, lbs/cow/day | F36: 0 | G36: 0 | H36: 1
C37: Milk production adjusted cost of silage out of storage, $/ton AF | F37: =F32-(F36*$H6*365*$D9/100)/F15 -> 35.96171113 | G37: =G32-(G36*$H6*365*$D9/100)/G15 -> 34.95569505 | H37: =H32-(H36*$H6*365*$D9/100)/H15 -> 31.38148987
C38: Milk production adjusted cost of silage out of storage, $/ton DM | F38: =F37/(1-$H8) -> 112.3803473 | G38: =G37/(1-$H8) -> 109.236547 | H38: =H37/(1-$H8) -> 98.06715584
B40: a The investment cost for the different systems can be estimated in the Investment tab.
B41: b The cost of packing for a bunker or silo can be estimated in the Packing tab.
